[Event "21st Alekhine FIDE 2017"]
[Site "Voronezh"]
[Date "2017.06.13"]
[Round "2"]
[White "Kozlov, Sergej A."]
[Black "Stepanyan, Eva"]
[Result "1-0"]
[ECO "E18"]
[WhiteElo "2072"]
[BlackElo "1856"]
[Annotator "NA RC"]
[PlyCount "43"]
[EventDate "2017.??.??"]
[EventType "swiss"]
[EventCountry "RUS"]
[SourceTitle "playchess.com"]
[Source "ChessBase"]
[SourceQuality "1"]
[TimeControl "40/5400+30:1800+30"]

{[%evp 8,41,15,11,24,10,19,5,2,32767,32767,13,18,3,7,-14,11,-23,-16,-21,32,28,44,35,41,25,31,41,31,41,27,0,-12,0,0,0]} 1. d4 {[%emt 0:00:00]} Nf6 {[%emt 0:00:06]} 2. c4 {[%emt 0:00:00]} e6 {[%emt 0:00:05]} 3. Nf3 {[%emt 0:00:00]} b6 {[%emt 0:00:08]} 4. g3 {[%emt 0:00:00]} Bb7 {[%emt 0:00:07]} 5. Bg2 {[%emt 0:00:09]} Be7 {[%emt 0:00:13]} 6. O-O {[%emt 0:01:03]} O-O {[%emt 0:00:19]} 7. Nc3 {[%emt 0:00:59]} d5 {[%emt 0:01:36]} 8. cxd5 {[%emt 0:08:35]} exd5 {[%emt 0:00:15]} 9. Ne5 {[%emt 0:07:44]} Na6 {[%emt 0:00:32]} 10. a3 {[%emt 0:02:21]} c5 {[%emt 0:01:55] LiveBook: 21 Games} 11. Qd3 $146 {[%emt 0:02:06] E12: Queen's Indian: Unusual White 4th moves, 4 a3, 4 Nc3 Bb7 5 a3 and 4 Nc3 Bb7} ({Predecessor:} 11. Bf4 Nc7 12. dxc5 bxc5 13. Nc4 Ne6 14. Be5 Ne4 15. Nxe4 dxe4 16. Qc2 f5 17. Qb3 Qd5 18. Rfd1 Nd4 19. Bxd4 cxd4 20. Na5 Bf6 21. Qxb7 Qxa5 {½-½ (34) Simantsev,M (2464)-Eggleston,D (2407) Orlova 2014}) 11... Re8 {[%emt 0:06:11]} 12. e3 {[%emt 0:11:09]} Nc7 {[%emt 0:08:35]} 13. Rd1 {[%emt 0:00:58]} cxd4 {[%emt 0:03:12]} (13... Bd6 $11) 14. exd4 {[%emt 0:01:20]} Bd6 {[%emt 0:02:23]} 15. Bf4 {[%emt 0:01:43]} h6 {[%emt 0:02:28]} 16. Qf5 {[%emt 0:03:47]} Bc8 {[%emt 0:09:46]} 17. Qc2 {[%emt 0:01:33]} Bb7 {[%emt 0:04:20]} 18. Re1 {[%emt 0:09:07]} Ne6 {[%emt 0:04:18]} 19. Rad1 {[%emt 0:03:13]} Nxf4 {[%emt 0:09:04]} 20. gxf4 {[%emt 0:00:19]} Qc8 {[%emt 0:02:26]} 21. Qd3 $11 {[%emt 0:02:23]} Qg4 {[%emt 0:01:56]} 22. Nxg4 {[%emt 0:00:09]} 1-0

[Event "21st Alekhine FIDE 2017"]
[Site "Voronezh"]
[Date "2017.06.13"]
[Round "2"]
[White "Novikov, Sergey D."]
[Black "Maraktanov, Andrey"]
[Result "1-0"]
[ECO "A65"]
[WhiteElo "2061"]
[BlackElo "1821"]
[Annotator "NA RC"]
[PlyCount "65"]
[EventDate "2017.??.??"]
[EventType "swiss"]
[EventCountry "RUS"]
[SourceTitle "playchess.com"]
[Source "ChessBase"]
[SourceQuality "1"]
[TimeControl "40/5400+30:1800+30"]

{[%evp 8,65,72,73,32767,32767,32767,32767,61,60,56,32767,32767,32767,32767,32767,32767,32767,154,58,66,68,59,41,58,57,59,68,61,55,85,68,89,99,100,94,90,50,78,51,32767,32767,32767,32767,32767,86,102,55,598,679,845,967,29995,29996,29996,29997,29997,29998,32767,29999]} 1. d4 {[%emt 0:00:00]} Nf6 {[%emt 0:00:06]} 2. c4 {[%emt 0:00:00]} c5 {[%emt 0:00:06]} 3. d5 {[%emt 0:00:00]} e6 {[%emt 0:00:03]} 4. Nc3 {[%emt 0:00:00]} exd5 {[%emt 0:00:04]} 5. cxd5 {[%emt 0:00:00]} d6 {[%emt 0:00:07]} 6. e4 {[%emt 0:00:00]} a6 {[%emt 0:00:04]} 7. a4 {[%emt 0:00:00]} g6 {[%emt 0:00:04] A65: Modern Benoni: 6 e4} 8. Be2 {[%emt 0:05:45]} Bg7 {[%emt 0:00:30] LiveBook: 8 Games} 9. Nf3 {[%emt 0:01:30]} Bg4 {[%emt 0:00:16]} 10. Nd2 {[%emt 0:00:18]} (10. O-O O-O 11. h3 Bxf3 12. Bxf3 Nbd7 13. Re1 Re8 14. Bf4 Qc7 15. a5 Rac8 16. Qc2 c4 {½-½ (16) Nyzhnyk,I (2625)-Erdos,V (2650) Mamaia 2013}) 10... Bxe2 {[%emt 0:00:57]} 11. Qxe2 {[%emt 0:00:01]} O-O {[%emt 0:00:48]} 12. Nc4 {[%emt 0:01:39]} Qe7 {[%emt 0:07:26]} (12... Nbd7 $11 {keeps the balance.}) 13. O-O {[%emt 0:03:09]} (13. Bf4 $16 Rd8 14. Bxd6 Rxd6 15. Nxd6) 13... Nbd7 {[%emt 0:03:02]} 14. Bf4 {[%emt 0:09:10]} Ne8 $1 {[%emt 0:00:56]} 15. Rfe1 {[%emt 0:08:43]} Ne5 {[%emt 0:00:31]} 16. Nb6 $146 {[%emt 0:01:46]} ({Predecessor:} 16. Nxe5 Bxe5 17. Bh6 Qh4 18. Qd2 Qxh2+ 19. Kf1 Ng7 20. Ke2 Qxg2 21. Rh1 Bxc3 22. Qxc3 Qxe4+ 23. Kd2 Qxd5+ 24. Kc2 Nf5 25. Rad1 Qe4+ 26. Kb3 b5 27. Rh5 Qxa4# {0-1 (27) Southam,D (2129)-Findlay,I (2328) Guelph 2002}) 16... Rd8 {[%emt 0:01:22]} 17. Bg3 {[%emt 0:01:40]} g5 {[%emt 0:01:25]} 18. Nd1 {[%emt 0:16:49]} Bf6 {[%emt 0:01:33]} 19. Ne3 {[%emt 0:01:18]} Ng7 {[%emt 0:11:37]} 20. a5 {[%emt 0:01:22]} Rfe8 {[%emt 0:04:15]} 21. Qd2 {[%emt 0:08:53]} h5 {[%emt 0:01:27]} 22. f4 {[%emt 0:03:00]} gxf4 {[%emt 0:00:42]} 23. Bxf4 {[%emt 0:00:02]} Ng6 {[%emt 0:00:33]} 24. Nf5 {[%emt 0:01:24]} Nxf5 {[%emt 0:01:37]} 25. exf5 {[%emt 0:00:32]} Bd4+ {[%emt 0:00:24]} 26. Kh1 {[%emt 0:01:59]} Ne5 {[%emt 0:00:36]} 27. Ra3 {[%emt 0:03:11]} f6 $2 {[%emt 0:03:58]} (27... Qh4 $1 $14 28. Rh3 Qf2 29. Qxf2 Bxf2) 28. Rg3+ {[%emt 0:04:57]} Kf7 {[%emt 0:03:00]} 29. Bxe5 {[%emt 0:00:51]} fxe5 {[%emt 0:03:25]} 30. Qh6 {[%emt 0:00:15]} Rg8 {[%emt 0:02:24]} 31. Qh7+ {[%emt 0:00:03]} Kf6 {[%emt 0:00:12]} 32. Rg6+ {[%emt 0:00:01]} Kxf5 {[%emt 0:00:23]} 33. Rg7+ {[%emt 0:00:03]} 1-0

[Event "21st Alekhine FIDE 2017"]
[Site "Voronezh"]
[Date "2017.06.13"]
[Round "2"]
[White "Zisin, Oleg"]
[Black "Lepaev, Andrey"]
[Result "1/2-1/2"]
[ECO "C56"]
[WhiteElo "1870"]
[BlackElo "2059"]
[Annotator "NA RC"]
[PlyCount "81"]
[EventDate "2017.??.??"]
[EventType "swiss"]
[EventCountry "RUS"]
[SourceTitle "playchess.com"]
[Source "ChessBase"]
[SourceQuality "1"]
[TimeControl "40/5400+30:1800+30"]

1. e4 {[%emt 0:00:00]} e5 {[%emt 0:00:03]} 2. Nf3 {[%emt 0:00:00]} Nc6 {[%emt 0:00:04]} 3. d4 {[%emt 0:00:00]} exd4 {[%emt 0:00:04]} 4. Bc4 {[%emt 0:00:00]} Nf6 {[%emt 0:00:06]} 5. O-O {[%emt 0:00:00]} Nxe4 {[%emt 0:00:04]} 6. Re1 {[%emt 0:00:00]} d5 {[%emt 0:00:04]} 7. Bxd5 {[%emt 0:00:00]} Qxd5 {[%emt 0:00:05]} 8. Nc3 {[%emt 0:00:03]} Qa5 {[%emt 0:00:06]} 9. Nxe4 {[%emt 0:00:09]} Be6 {[%emt 0:00:04]} 10. Neg5 {[%emt 0:00:06]} O-O-O {[%emt 0:00:08]} 11. Nxe6 {[%emt 0:00:15]} fxe6 {[%emt 0:00:04]} 12. Rxe6 {[%emt 0:00:03] LiveBook: 147 Games} h6 $14 {[%emt 0:00:11]} 13. Qe2 {[%emt 0:07:02]} g5 {[%emt 0:00:05]} 14. Qe4 {[%emt 0:02:11]} Qd5 {[%emt 0:00:05]} 15. Bd2 {[%emt 0:07:13]} Bg7 {[%emt 0:00:07]} 16. Qxd5 {[%emt 0:17:26]} Rxd5 {[%emt 0:00:03]} 17. Rae1 {[%emt 0:02:10]} Rc5 {[%emt 0:03:33]} 18. Rg6 {[%emt 0:08:23]} Rh7 {[%emt 0:00:04]} 19. h4 {[%emt 0:10:08]} gxh4 {[%emt 0:00:19]} 20. Re8+ {[%emt 0:10:53]} Kd7 {[%emt 0:00:06]} 21. Rg8 {[%emt 0:00:12]} Be5 {[%emt 0:01:23]} 22. Nxe5+ {[%emt 0:15:08]} Nxe5 {[%emt 0:00:19]} 23. R6g7+ {[%emt 0:01:02]} Rxg7 {[%emt 0:00:04]} 24. Rxg7+ {[%emt 0:00:03]} Ke6 {[%emt 0:02:56]} 25. c3 {[%emt 0:01:29]} d3 {[%emt 0:02:23]} 26. b3 {[%emt 0:00:42]} a5 {[%emt 0:26:25]} 27. f4 {[%emt 0:01:54]} Nf7 {[%emt 0:00:18]} 28. Kf2 {[%emt 0:05:07]} Rh5 {[%emt 0:11:12]} 29. g4 {[%emt 0:05:46]} hxg3+ {[%emt 0:00:10]} 30. Rxg3 {[%emt 0:00:05]} Nd6 {[%emt 0:00:52]} 31. Rxd3 {[%emt 0:00:40]} Rh2+ {[%emt 0:00:47]} 32. Kg1 {[%emt 0:01:18]} Rh4 {[%emt 0:09:35]} 33. Kg2 {[%emt 0:02:06]} Nf5 {[%emt 0:13:04]} 34. c4 {[%emt 0:00:28]} Rg4+ {[%emt 0:01:07]} 35. Kf2 {[%emt 0:00:32]} h5 {[%emt 0:03:30]} 36. Rh3 {[%emt 0:01:41]} h4 {[%emt 0:00:47]} 37. Kf3 {[%emt 0:00:55]} Rg1 {[%emt 0:00:02]} 38. Bxa5 {[%emt 0:02:08]} b6 {[%emt 0:05:46]} 39. Bc3 {[%emt 0:00:30]} Rf1+ {[%emt 0:09:03]} 40. Kg4 {[%emt 0:00:36]} Rg1+ {[%emt 0:30:07]} 41. Kf3 {[%emt 0:30:04]} 1/2-1/2

[Event "21st Alekhine FIDE 2017"]
[Site "Voronezh"]
[Date "2017.06.13"]
[Round "2"]
[White "Ter-Saakian, Grigorii"]
[Black "Kondaurov, Yury"]
[Result "0-1"]
[ECO "A62"]
[WhiteElo "1844"]
[BlackElo "2046"]
[Annotator "NA RC"]
[PlyCount "76"]
[EventDate "2017.??.??"]
[EventType "swiss"]
[EventCountry "RUS"]
[SourceTitle "playchess.com"]
[Source "ChessBase"]
[SourceQuality "1"]
[TimeControl "40/5400+30:1800+30"]

{[%evp 8,74,54,81,32767,32767,32767,32767,32767,32767,32767,32767,8,32767,91,70,76,71,83,-2,-4,0,15,18,22,0,17,-26,-13,-65,-44,-68,-71,-85,-75,-87,-83,-87,-79,-70,-85,-71,-17,-27,-16,-47,-38,-66,-66,-66,-58,-59,-37,-128,-153,-143,-159,-192,-172,-231,-241,-289,-292,-302,-333,-706,-846,-1053,-587]} 1. d4 {[%emt 0:00:00]} Nf6 {[%emt 0:00:01]} 2. Nf3 {[%emt 0:00:00]} c5 {[%emt 0:00:08]} 3. d5 {[%emt 0:01:15]} e6 {[%emt 0:00:12]} 4. c4 {[%emt 0:00:39]} exd5 {[%emt 0:00:03]} 5. cxd5 {[%emt 0:00:05]} d6 {[%emt 0:00:04]} 6. Nc3 {[%emt 0:00:05]} g6 {[%emt 0:00:02]} 7. g3 {[%emt 0:00:06]} Bg7 {[%emt 0:00:06]} 8. Bg2 {[%emt 0:00:02]} O-O {[%emt 0:00:04]} 9. O-O {[%emt 0:00:04]} Re8 {[%emt 0:00:52]} 10. Nd2 {[%emt 0:07:37]} Na6 {[%emt 0:07:59]} (10... Nbd7 $11 {keeps the balance.}) 11. Nc4 {[%emt 0:06:01]} Nc7 {[%emt 0:00:12] LiveBook: 13 Games} 12. a4 {[%emt 0:00:03] A62: Modern Benoni: Fianchetto Variation without early ...Nbd7} b6 {[%emt 0:00:22]} 13. e4 {[%emt 0:01:37]} ({White should play} 13. Bf4 $16 Bf8 14. Re1 Nh5 15. Bd2 Ba6 16. b3 Qd7 17. e4 Bg7 18. Qc2 Rad8 19. h3 Qc8 20. g4 Nf6 21. Rad1 Bxc4 22. bxc4 {0-1 (59) Gordievsky,D (2491)-Ponkratov,P (2610) Kaliningrad 2015}) 13... Ba6 {[%emt 0:00:17]} 14. Qb3 {[%emt 0:03:28]} Bxc4 {[%emt 0:02:34]} 15. Qxc4 {[%emt 0:00:08]} a6 {[%emt 0:00:05]} 16. Bf4 {[%emt 0:11:45]} Rb8 {[%emt 0:03:51]} 17. Rad1 $146 {[%emt 0:08:40]} ({Predecessor:} 17. Qd3 b5 18. axb5 axb5 19. Rfe1 b4 20. Na4 Ng4 21. Qc2 {0-1 (35) Henrichsen,J (2150)-Auchenberg,P (2160) Copenhagen 1994}) 17... b5 {[%emt 0:00:51]} 18. axb5 {[%emt 0:00:05]} axb5 {[%emt 0:00:03]} 19. Qd3 {[%emt 0:00:04]} c4 {[%emt 0:03:09]} 20. Qc2 {[%emt 0:00:06] [#]} Na6 $1 {[%emt 0:00:44]} 21. Rfe1 {[%emt 0:02:40]} Nb4 {[%emt 0:00:23]} 22. Qb1 {[%emt 0:00:01]} Nd3 {[%emt 0:00:23]} 23. Rxd3 {[%emt 0:00:02]} cxd3 {[%emt 0:00:09]} 24. Qxd3 {[%emt 0:00:01]} Qd7 {[%emt 0:06:51]} ({Black should try} 24... Ng4 $17) 25. Bf1 {[%emt 0:05:14]} Nh5 {[%emt 0:01:42]} 26. Bc1 {[%emt 0:06:21]} b4 {[%emt 0:02:31]} 27. Ne2 {[%emt 0:04:57]} Nf6 {[%emt 0:00:19]} 28. f3 {[%emt 0:02:02]} Qb7 {[%emt 0:02:10]} 29. Be3 {[%emt 0:01:31]} Nd7 {[%emt 0:00:17]} 30. Bd4 {[%emt 0:03:56]} (30. Qb3 $15) 30... Ne5 {[%emt 0:01:07]} 31. Bxe5 {[%emt 0:00:27]} Bxe5 {[%emt 0:00:05]} 32. b3 {[%emt 0:03:06]} Ra8 {[%emt 0:01:28]} 33. f4 {[%emt 0:01:02]} Bg7 {[%emt 0:00:19]} 34. Bg2 {[%emt 0:00:29]} Ra2 {[%emt 0:00:18]} 35. Kf1 {[%emt 0:00:16]} Qb6 {[%emt 0:01:52]} 36. Bf3 $19 {[%emt 0:01:52]} (36. Rd1) 36... Rc8 {[%emt 0:00:19]} 37. Bg2 {[%emt 0:01:28]} Rcc2 {[%emt 0:01:16]} 38. Qf3 {[%emt 0:00:11]} Bc3 {[%emt 0:00:24]} 0-1

[Event "21st Alekhine FIDE 2017"]
[Site "Voronezh"]
[Date "2017.06.14"]
[Round "3"]
[White "Kondaurov, Yury"]
[Black "Sokolovsky, Victor"]
[Result "1-0"]
[ECO "A14"]
[WhiteElo "2046"]
[BlackElo "1896"]
[Annotator "NA RC"]
[PlyCount "93"]
[EventDate "2017.??.??"]
[EventType "swiss"]
[EventCountry "RUS"]
[SourceTitle "playchess.com"]
[Source "ChessBase"]
[SourceQuality "1"]
[TimeControl "40/5400+30:1800+30"]

{[%evp 8,93,28,24,16,9,0,32767,32767,0,32767,32767,14,6,43,0,38,-4,24,29,66,52,32767,32767,32767,32767,32767,33,102,62,346,297,350,387,452,487,497,491,425,433,443,439,465,329,288,188,174,151,195,204,484,614,621,245,378,272,32767,405,410,417,428,409,410,428,937,303,339,324,1527,328,1310,461,569,618,1507,1344,1638,1796,1753,1233,906,1245,2275,2538,6808,1047,942,1270]} 1. Nf3 {[%emt 0:00:00]} d5 {[%emt 0:01:21]} 2. c4 {[%emt 0:00:00]} e6 {[%emt 0:00:44]} 3. g3 {[%emt 0:00:12]} Nf6 {[%emt 0:00:20]} 4. Bg2 {[%emt 0:00:01]} Be7 {[%emt 0:01:33]} 5. O-O {[%emt 0:00:19]} O-O {[%emt 0:00:14]} 6. b3 {[%emt 0:00:06]} c5 {[%emt 0:01:00] LiveBook: 1504 Games} 7. Bb2 {[%emt 0:01:01]} Nc6 {[%emt 0:00:29]} 8. e3 {[%emt 0:00:22]} Qc7 {[%emt 0:02:58]} 9. Nc3 {[%emt 0:00:15]} Rd8 {[%emt 0:01:40] A14: English Opening: 1...e6 with b3 by White} 10. Qe2 {[%emt 0:01:21]} a6 {[%emt 0:01:13]} (10... b6 11. Rac1 dxc4 12. bxc4 Bb7 13. Rfd1 Rac8 14. d4 cxd4 15. exd4 Ba6 16. Nb5 Qb8 17. a4 Bb7 18. d5 exd5 19. Ne5 Na5 20. Bh3 dxc4 21. Nd7 Nxd7 22. Qxe7 {0-1 (37) Sambuev,B (2523)-Dervishi,E (2538) Istanbul 2012}) 11. d3 {[%emt 0:01:04]} b6 {[%emt 0:01:46]} 12. Rfd1 {[%emt 0:00:42]} Bb7 {[%emt 0:00:29]} 13. cxd5 {[%emt 0:00:11]} exd5 {[%emt 0:01:13]} 14. d4 {[%emt 0:00:19]} Rac8 $146 {[%emt 0:04:37]} ({Predecessor:} 14... b5 15. dxc5 Bxc5 16. Rac1 Qb6 17. Ng5 Ne7 18. Nb1 {½-½ (18) Dobos,J (2272)-Dudas,E (2253) Hungary 2012}) 15. dxc5 {[%emt 0:00:36]} Bxc5 {[%emt 0:05:11]} 16. Rac1 {[%emt 0:01:01]} Qe7 {[%emt 0:01:00]} 17. Na4 {[%emt 0:02:30]} Ne4 {[%emt 0:01:52]} (17... d4 $1 $11 {keeps the balance.}) 18. Nh4 {[%emt 0:11:27]} Ne5 $2 {[%emt 0:08:14]} (18... g6 $16) 19. Nxc5 {[%emt 0:01:29]} bxc5 {[%emt 0:02:24]} 20. f4 {[%emt 0:00:48]} Ng6 {[%emt 0:16:15]} 21. Nf5 $1 {[%emt 0:01:25]} Qc7 {[%emt 0:03:26]} 22. Bxe4 {[%emt 0:02:37]} dxe4 {[%emt 0:00:15]} 23. Nxg7 {[%emt 0:00:36]} Rd3 {[%emt 0:03:13]} 24. Nf5 {[%emt 0:04:57]} Rcd8 {[%emt 0:01:20]} 25. Nh6+ {[%emt 0:01:18]} Kf8 {[%emt 0:00:16]} 26. Qc2 {[%emt 0:01:00]} Qd6 {[%emt 0:07:12]} 27. Re1 {[%emt 0:06:17]} Ne7 {[%emt 0:08:16]} 28. Ng4 {[%emt 0:01:13]} Rd2 $2 {[%emt 0:04:38]} (28... f5 {is a better chance.}) 29. Qc3 {[%emt 0:00:18]} Qg6 {[%emt 0:01:00]} 30. Nf2 $2 {[%emt 0:05:18]} (30. Qh8+ Ng8 31. Rxc5 Rxb2 32. Qxb2) 30... Qh6 {[%emt 0:01:25]} (30... f6 $142 31. Ba3 (31. Qxf6+ Qxf6 32. Bxf6 Rxa2 $18) 31... R2d7 32. Bxc5 Kg7) 31. Qh8+ {[%emt 0:06:50]} Ng8 {[%emt 0:00:16]} 32. Ba3 {[%emt 0:00:31]} f6 {[%emt 0:03:56]} 33. Rxc5 {[%emt 0:01:18]} Kf7 {[%emt 0:02:17]} 34. Rc7+ {[%emt 0:00:45]} R8d7 {[%emt 0:02:32]} 35. Rec1 {[%emt 0:02:48]} Qh5 {[%emt 0:01:17]} (35... Qg7 $142 36. Qxg7+ Kxg7) 36. Rxd7+ $2 {[%emt 0:00:41]} (36. Bb4 R2d5 37. R1c5) 36... Rxd7 {[%emt 0:00:08]} 37. g4 {[%emt 0:00:34]} Qh4 $2 {[%emt 0:02:13]} (37... Qg6 38. Rc4 h5 39. Qxh5 Qxh5 40. gxh5 f5) 38. Rc2 $2 {[%emt 0:01:58]} (38. Rc5 a5 39. Rh5 Qxh5 40. gxh5) 38... a5 $2 {[%emt 0:04:42]} (38... Qh6 39. h3 Qg7 40. Qxg7+ Kxg7) 39. Bb2 {[%emt 0:03:14]} (39. Rc5 $142) 39... Ba6 {[%emt 0:02:12]} 40. Kg2 {[%emt 0:05:15]} (40. g5 {[#] leads to mate.} Rd1+ $1 {[%mdl 512]} 41. Kg2 Bf1+ 42. Kh1 Bh3+ 43. Nxd1 Qe1#) 40... Kf8 {[%emt 0:31:30]} 41. h3 {[%emt 0:30:45]} Kf7 {[%emt 0:02:22]} 42. g5 {[%emt 0:08:27]} Qh5 {[%emt 0:03:18]} 43. gxf6 {[%emt 0:01:24]} Qg6+ {[%emt 0:01:11]} 44. Kh2 {[%emt 0:00:37]} Ke8 {[%emt 0:00:38]} 45. Ng4 {[%emt 0:00:53]} h5 {[%emt 0:00:43]} 46. Ne5 $18 {[%emt 0:01:21]} Qh7 {[%emt 0:00:22]} 47. Nxd7 {[%emt 0:01:24]} 1-0

[Event "21st Alekhine FIDE 2017"]
[Site "Voronezh"]
[Date "2017.06.14"]
[Round "3"]
[White "Filippov, Ivan"]
[Black "Buyukli, Egor"]
[Result "1/2-1/2"]
[ECO "E70"]
[WhiteElo "2041"]
[BlackElo "1749"]
[Annotator "NA"]
[PlyCount "69"]
[EventDate "2017.??.??"]
[EventType "swiss"]
[EventCountry "RUS"]
[SourceTitle "playchess.com"]
[Source "ChessBase"]
[SourceQuality "1"]
[TimeControl "40/5400+30:1800+30"]

{[%evp 8,69,42,25,32767,58,57,54,59,48,64,39,46,40,50,41,40,54,56,39,109,57,61,49,62,30,64,59,77,77,76,58,83,87,64,67,70,60,71,70,71,13,9,0,0,0,0,0,15,0,0,0,0,0,0,-6,0,0,5,0,7,0,0,0]} 1. d4 {[%emt 0:00:00]} Nf6 {[%emt 0:00:39]} 2. c4 {[%emt 0:00:45]} g6 {[%emt 0:00:10]} 3. Nc3 {[%emt 0:00:32]} Bg7 {[%emt 0:00:17]} 4. e4 {[%emt 0:01:29]} O-O {[%emt 0:00:47]} 5. f3 {[%emt 0:01:42]} c6 {[%emt 0:00:57]} 6. Bd3 {[%emt 0:01:33] E70: King's Indian: Miscellaneous lines with 4 e4, including 5 Nge2 and 5 Bd3 0-0 6 Nge2} d5 {[%emt 0:00:53] LiveBook: 3 Games} 7. cxd5 {[%emt 0:01:43]} cxd5 {[%emt 0:00:08]} 8. e5 {[%emt 0:00:05]} Ne8 {[%emt 0:04:41]} 9. Nge2 {[%emt 0:04:37]} f6 $146 {[%emt 0:13:05]} ({Predecessor:} 9... Nc6 10. O-O f6 11. f4 Nc7 12. Be3 fxe5 13. fxe5 Rxf1+ 14. Qxf1 {½-½ (31) Van der Sterren,P (2475)-Rogers,I (2545) Sydney 1991}) 10. f4 {[%emt 0:02:26]} fxe5 {[%emt 0:00:05]} 11. dxe5 {[%emt 0:00:05]} Nc7 {[%emt 0:07:16]} 12. O-O {[%emt 0:01:36]} Nc6 {[%emt 0:01:51]} 13. Be3 {[%emt 0:12:08]} e6 {[%emt 0:09:01]} (13... Bh6 $14) 14. Nb5 {[%emt 0:01:37]} (14. Nd4 $16) 14... Nxb5 {[%emt 0:07:33]} 15. Bxb5 {[%emt 0:00:03]} Bd7 {[%emt 0:01:18]} 16. Bd3 {[%emt 0:06:30]} (16. Bxc6 $5 Bxc6 17. Nd4 $14) 16... Rc8 {[%emt 0:04:16]} 17. a3 {[%emt 0:01:16]} Qe7 {[%emt 0:04:59]} 18. b4 {[%emt 0:00:42]} b6 {[%emt 0:00:07]} 19. Ba6 {[%emt 0:02:57]} Rc7 {[%emt 0:00:15]} 20. Rc1 {[%emt 0:00:47]} Bc8 {[%emt 0:00:15]} 21. Bb5 {[%emt 0:02:12]} Bb7 {[%emt 0:00:38]} 22. Qd2 {[%emt 0:15:58]} Rfc8 {[%emt 0:04:17]} 23. Rc3 {[%emt 0:04:10]} Qd8 {[%emt 0:09:10]} 24. Bxc6 {[%emt 0:13:37]} (24. Ba4 $16) 24... Rxc6 {[%emt 0:00:56]} 25. Rxc6 {[%emt 0:00:48]} Bxc6 {[%emt 0:01:19]} 26. Nd4 {[%emt 0:01:05]} Bd7 {[%emt 0:00:15]} 27. Rc1 {[%emt 0:00:09]} Rc7 {[%emt 0:00:49]} 28. Rxc7 {[%emt 0:04:36]} Qxc7 {[%emt 0:00:07]} 29. Qc2 {[%emt 0:00:04]} Qxc2 {[%emt 0:01:17]} 30. Nxc2 {[%emt 0:00:01]} Kf7 {[%emt 0:01:12]} (30... g5 $5) 31. Kf2 {[%emt 0:04:01]} Bf8 {[%emt 0:03:52]} (31... g5 $5) 32. Bd2 {[%emt 0:00:36]} Ba4 {[%emt 0:02:20]} (32... a5 $5) 33. Nd4 {[%emt 0:00:24]} a5 {[%emt 0:04:12]} 34. Bc3 {[%emt 0:00:41]} axb4 $11 {[%emt 0:00:30]} 35. axb4 1/2-1/2